Cogmind - Beta 10.1 @@@ ROGUE MODE // 2020.09.24 @ 19:18:37 Player: Cracklepappy Result: Core destroyed Performance ------------- Evolutions (5) 2500 Regions Visited (23) 4600 Robots Destroyed (226) 1130 Value Destroyed (6189) 6189 Prototype IDs (82) 1640 Alien Tech Used (2) 400 Bonus (2870) 2870 TOTAL SCORE: 19329 Bonus ------- High Alert Combat Kills 385 Follower Combat Kills 878 Aligned with FarCom 300 Met Data Miner 300 Destroyed Z-Imprinter 1000 Met Zhirov 300 Friendly Fire -293 Cogmind --------- Core Integrity 0/1000 Matter 295/300 Energy 100/100 System Corruption 2% Temperature Cool (0) Movement Flying (105) Ox1 Location -5/Zhirov Parts ------- > --- POWER (2) -------- (None) > --- PROPULSION (6) --- Improved VTOL Module > --- UTILITY (7) ------ Advanced Signal Interpreter Advanced ECM Suite Experimental Utility Shielding Zionite Weapon Casing Advanced Hacking Suite > --- WEAPON (2) ------- CR-A16's Behemoth Slayer > --- INVENTORY (4) ---- Fusion Reactor Advanced Hacking Suite Advanced EMP Blaster Peak State ------------ > --- POWER ------------ Heavy Deuterium Engine Antimatter Reactor > --- PROPULSION ------- Improved VTOL Module Flying Fortress v7 > --- UTILITY ---------- Large Storage Unit Large Storage Unit Advanced Sensor Array Advanced Signal Interpreter Advanced ECM Suite Hacking Suite > --- WEAPON ----------- Neutron Cannon KE Penetrator > --- INVENTORY -------- VTOL Module Experimental Heat Sink Zionite Biocell Zionite Biocell Zionite Biocell Compact Matter Pod Gravity Neutralizing Apparatus Advanced Terrain Scanner Advanced Reaction Control System Zionite Weapon Casing Zionite Weapon Casing GOLEM Unit Advanced EMP Blaster CR-A16's Pointy Stick Deploy-a-Sentry [Rating: 85] Favorites ----------- Power Improved Ion Engine Engine Improved Ion Engine Power Core Light Nuclear Core Reactor Cold Fusion Reactor Propulsion Light Treads Treads Light Treads Leg Aluminum Leg Wheel Wheel Hover Unit Zionite Glidesys I Flight Unit Improved VTOL Module Utility High-capacity Storage Unit Device Advanced Sensor Array Storage High-capacity Storage Unit Processor Advanced Signal Interpreter Hackware Makeshift Hacking Suite Protection Medium Armor Plating Weapon Improved Assault Rifle Energy Gun Beamcaster Energy Cannon Improved EM Pulse Cannon Ballistic Gun Improved Assault Rifle Launcher Grenade Launcher Impact Weapon Makeshift Hammer Slashing Weapon Power Sword Piercing Weapon CR-A16's Pointy Stick Build | -11 -10 -10 -9 -9 -9 -8 -8 -8 -7 -7 -7 -7 -7 -6 -6 -6 -6 -6 -5 -5 -5 -5 -5 ------- Run | Scr Mat Min Mat Min Exi Min Mat Sto Fac Low Low Zio Dee Pro Fac Low Low Dat Pro Fac Upp Upp Zhi Slots Evolved 10 | . . . 2 . . . 2 . 2 . . . . . 2 . . . . 2 . . . Power 1 | . . . . . . . . . 1 . . . . . . . . . . . . . . Propulsion 4 | . . . . . . . 2 . 1 . . . . . . . . . . 1 . . . Utility 5 | . . . 2 . . . . . . . . . . . 2 . . . . 1 . . . Weapon . | . . . . . . . . . . . . . . . . . . . . . . . . Parts Attached 260 | 7 16 7 29 . 22 4 21 35 19 17 2 4 34 . 8 9 1 . . 17 . 1 7 Power 36 | 1 4 1 2 . 4 . 3 1 6 1 . . 5 . 1 2 . . . 5 . . . Engine 21 | 1 4 1 1 . 3 . 1 1 5 . . . 2 . 1 1 . . . . . . . Core 8 | . . . 1 . . . 2 . . . . . . . . . . . . 5 . . . Reactor 7 | . . . . . 1 . . . 1 1 . . 3 . . 1 . . . . . . . Propulsion 58 | 2 3 2 6 . 4 1 8 18 3 . . . 4 . 1 1 . . . 5 . . . Treads 33 | 1 3 1 5 . 2 1 5 15 . . . . . . . . . . . . . . . Leg 8 | . . . . . 2 . 2 2 1 . . . 1 . . . . . . . . . . Wheel 4 | 1 . 1 1 . . . 1 . . . . . . . . . . . . . . . . Hover 1 | . . . . . . . . . . . . . 1 . . . . . . . . . . Flight 12 | . . . . . . . . 1 2 . . . 2 . 1 1 . . . 5 . . . Utility 69 | 2 3 . 8 . 7 . . . 7 6 . 2 14 . 6 3 1 . . 5 . 1 4 Device 25 | 1 . . 1 . 1 . . . 3 3 . 2 5 . 3 3 . . . 2 . . 1 Storage 18 | 1 3 . 4 . 2 . . . 3 . . . 2 . 2 . . . . 1 . . . Processor 1 | . . . . . . . . . 1 . . . . . . . . . . . . . . Hackware 3 | . . . . . . . . . . . . . . . 1 . 1 . . . . 1 . Protection 22 | . . . 3 . 4 . . . . 3 . . 7 . . . . . . 2 . . 3 Artifact . | . . . . . . . . . . . . . . . . . . . . . . . . Weapon 97 | 2 6 4 13 . 7 3 10 16 3 10 2 2 11 . . 3 . . . 2 . . 3 Energy Gun 10 | 1 2 . 2 . . . . 1 . 1 . . 3 . . . . . . . . . . Energy Cannon 14 | . . . 1 . 2 . 3 2 . 2 . . 3 . . 1 . . . . . . . Ballistic Gun 41 | 1 3 2 6 . 2 2 5 9 3 5 1 . 2 . . . . . . . . . . Ballistic Cannon . | . . . . . . . . . . . . . . . . . . . . . . . . Launcher 18 | . 1 2 4 . 3 1 2 1 . 1 . . 2 . . . . . . . . . 1 Special Weapon . | . . . . . . . . . . . . . . . . . . . . . . . . Impact Weapon 1 | . . . . . . . . . . . . 1 . . . . . . . . . . . Slashing Weapon 1 | . . . . . . . . . . . . . . . . . . . . 1 . . . Piercing Weapon 12 | . . . . . . . . 3 . 1 1 1 1 . . 2 . . . 1 . . 2 Special Melee Weapon . | . . . . . . . . . . . . . . . . . . . . . . . . Unidentified Prototypes 26 | . . . . . 4 . . 5 1 . . 1 11 . . . . . . 2 . . 2 Parts Lost 57 | . 4 5 3 . 1 2 15 3 4 1 . . 6 . . . 1 . . 4 . 3 5 Power 12 | . 1 1 1 . . . 3 . 1 . . . 2 . . . . . . 1 . . 2 Propulsion 22 | . 1 2 . . 1 1 7 3 2 . . . 1 . . . . . . 2 . . 2 Utility 9 | . . . 1 . . . . . . . . . 2 . . . 1 . . 1 . 3 1 Weapon 14 | . 2 2 1 . . 1 5 . 1 1 . . 1 . . . . . . . . . . Highest Loss Streak 6 | . 2 4 1 . 1 1 6 2 3 1 . . 6 . . . 1 . . 3 . 2 5 Average Slot Usage (%) 86 | . 99 99 99 100 83 92 91 98 86 72 76 72 63 76 79 75 65 60 60 73 76 65 64 Engine 8 | . 13 13 5 11 11 11 2 9 14 7 7 7 5 7 6 5 6 6 6 1 . . . Core 1 | . . . 5 . . . 5 . . . . . . . . . . . . 4 11 11 11 Reactor 1 | . . . . . . . . . . 6 7 7 6 7 6 4 . . . . . . . Treads 14 | . 13 14 13 22 21 22 25 30 23 . . . . . . . . . . . . . . Wheel 3 | . 14 13 9 . . . 1 1 . . . . . . . . . . . . . . . Flight 4 | . . . . . . . . . . 15 15 15 13 15 13 12 13 13 13 19 17 17 17 Device 4 | . 12 . . . . . . . . 6 7 7 1 7 12 16 25 20 20 21 23 15 13 Storage 25 | . 15 28 32 33 34 44 36 36 29 15 15 15 15 15 13 9 . . . 4 5 3 . Processor 1 | . . . . . . . . . . 7 7 7 7 7 6 6 6 6 6 5 5 5 5 Protection 3 | . . . 10 11 9 . . . . 1 . . 3 . . . . . . . . . 6 Energy Gun 1 | . 8 1 8 . . . . . . 4 . . . . . . . . . . . . . Ballistic Gun 8 | . 17 7 11 22 5 13 14 16 14 4 10 . . 7 6 4 . . . . . . . Launcher 2 | . 1 19 1 . . 1 1 . . . . . 2 . . . . . . . . . . Piercing Weapon 1 | . . . . . . . . . . 1 3 6 2 7 6 5 6 6 6 5 11 5 1 Naked Turns . | . . . . . . . . . . . . . . . . . . . . . . . . Heaviest Build 154 | 12 55 59 116 110 145 145 141 153 154 82 73 71 78 75 84 71 20 18 18 38 22 22 27 Greatest Support 90 | 16 20 20 40 40 40 40 80 88 88 78 78 78 90 77 78 78 23 23 23 58 32 32 20 Greatest Overweight (x) 14 | . 3 5 9 2 5 3 14 14 3 1 . . . . 1 1 . . . . . . 1 Average Overweight (x) 1 | . 1 4 5 2 2 3 3 2 1 . . . . . . . . . . . . . . Largest Inventory Capacity 36 | 6 18 18 28 28 36 36 36 36 36 16 16 16 16 16 24 16 4 4 4 4 4 4 4 Average Capacity 23 | 5 9 18 26 28 29 36 36 36 35 16 16 16 16 16 16 12 4 4 4 4 4 4 4 Most Carried 36 | 6 18 18 28 28 36 36 36 36 36 16 16 16 16 16 17 16 4 4 4 4 4 4 4 Average Carried 22 | 4 9 17 26 28 25 35 33 35 35 15 15 16 15 16 16 11 4 4 4 3 3 3 3 Final Capacity 36 | 6 18 18 28 28 36 36 36 36 16 16 16 16 16 16 16 4 4 4 4 4 4 4 4 Final Carried 36 | 6 18 18 28 28 36 34 36 36 16 16 16 16 16 16 16 4 4 4 4 4 3 4 3 Class Distribution -------------------- 52% | Hauler-Mutant 34% | Mutant 7% | Sprinter Dominant Class ---------------- Mutant | -10/Materials Mutant | -10/Mines Hauler-Mutant | -9/Materials Hauler-Mutant | -9/Mines Hauler-Mutant | -9/Exiles Hauler-Mutant | -8/Mines Hauler-Mutant | -8/Materials Hauler-Mutant | -8/Storage Hauler-Mutant | -7/Factory Mutant | -7/Lower Caves Mutant | -7/Lower Caves Mutant | -7/Zion Mutant | -7/Deep Caves Mutant | -6/Proximity Caves Machinist-Mutant | -6/Factory Machinist-Mutant | -6/Lower Caves Mutant | -6/Lower Caves Mutant | -6/Data Miner Mutant | -5/Proximity Caves Sprinter | -5/Factory Sprinter | -5/Upper Caves Sprinter | -5/Upper Caves Sprinter | -5/Zhirov Resources | -11 -10 -10 -9 -9 -9 -8 -8 -8 -7 -7 -7 -7 -7 -6 -6 -6 -6 -6 -5 -5 -5 -5 -5 ----------- Run | Scr Mat Min Mat Min Exi Min Mat Sto Fac Low Low Zio Dee Pro Fac Low Low Dat Pro Fac Upp Upp Zhi Matter Collected 5499 | 299 325 264 792 . 509 185 518 817 511 145 238 68 403 . . 176 18 . . 151 10 10 60 Remotely . | . . . . . . . . . . . . . . . . . . . . . . . . Salvage Created 7993 | 106 561 209 1274 . 403 600 1075 1409 767 199 . . 523 . . 187 . . . 293 . . 387 Parts 471 | 11 43 10 96 . 44 34 61 76 46 8 . . 24 . . 1 . . . 12 . . 5 Haulers Intercepted 9 | . 1 . 3 . . . 1 4 . . . . . . . . . . . . . . . Recyclers Shooed 4 | . . 1 2 . . . . . 1 . . . . . . . . . . . . . . Parts Field Recycled . | . . . . . . . . . . . . . . . . . . . . . . . . Retrieved Matter . | . . . . . . . . . . . . . . . . . . . . . . . . Parts Self-Destructed 33 | . . . . . . . . . . 3 11 . . . . 3 . . 5 . 5 2 4 Prevented 4 | . . . . . . . . . . 2 2 . . . . . . . . . . . . Kills | -11 -10 -10 -9 -9 -9 -8 -8 -8 -7 -7 -7 -7 -7 -6 -6 -6 -6 -6 -5 -5 -5 -5 -5 ------- Run | Scr Mat Min Mat Min Exi Min Mat Sto Fac Low Low Zio Dee Pro Fac Low Low Dat Pro Fac Upp Upp Zhi Combat Hostiles Destroyed 179 | . 17 14 30 . 8 20 27 26 16 6 . . 9 . . 3 . . . 3 . . . Melee 6 | . . . . . . . . . . . . . 1 . . 2 . . . 3 . . . Guns 121 | . 17 4 17 . 1 17 20 26 16 2 . . . . . 1 . . . . . . . Cannons 3 | . . . . . . . 2 . . . . . 1 . . . . . . . . . . AOE 46 | . . 10 13 . 7 3 5 . . 4 . . 4 . . . . . . . . . . Classes Destroyed 20 | 2 4 2 3 . 2 1 2 . 1 1 . . 2 . . . . . . . . . . Worker 3 | . . 1 . . . 1 . 1 . . . . . . . . . . . . . . . Builder 3 | . . . 2 . . . 1 . . . . . . . . . . . . . . . . Tunneler 3 | 3 . . . . . . . . . . . . . . . . . . . . . . . Hauler 9 | . 1 . 3 . . . 1 4 . . . . . . . . . . . . . . . Recycler 5 | 1 . . 2 . . . . 1 . . . . . . . . . . . 1 . . . Operator 1 | . . . . . . . 1 . . . . . . . . . . . . . . . . Turret 1 | . . . . . 1 . . . . . . . . . . . . . . . . . . Watcher 11 | . 3 . 4 . . . . 1 2 . . . . . . . . . . 1 . . . Swarmer 52 | . 9 . 11 . . 11 4 8 4 2 . . . . . 1 . . . 2 . . . Grunt 66 | . 8 4 11 . . 7 17 11 7 1 . . . . . . . . . . . . . Brawler 3 | . . . . . . 2 1 . . . . . . . . . . . . . . . . Duelist 2 | . . . 1 . . . 1 . . . . . . . . . . . . . . . . Sentry 18 | . . . 7 . . . 2 6 2 1 . . . . . . . . . . . . . Hunter 3 | . . . . . . . 2 1 . . . . . . . . . . . . . . . Programmer 5 | . . . . . . . . . 3 1 . . . . . . . . . 1 . . . Zionite 8 | . . . . . 8 . . . . . . . . . . . . . . . . . . Z-Light 6 | . . . . . . . . . . . . . 6 . . . . . . . . . . Thief 1 | . . . . . . . . . . 1 . . . . . . . . . . . . . Assembled 19 | . . 10 . . 7 . . . . . . . 2 . . . . . . . . . . Golem 3 | . . . . . . . . . . . . . 1 . . 2 . . . . . . . Best Kill Streak 7 | 2 4 5 7 . 7 4 5 6 6 4 . . 4 . . 3 . . . 4 . . . Combat Bots Only 7 | . 3 5 5 . 7 4 5 6 6 4 . . 4 . . 3 . . . 3 . . . Max Kills in Single Turn 4 | 1 2 3 3 . 3 3 4 2 1 2 . . 1 . . 1 . . . 1 . . . Gunslinging 1 | . 1 . . . . . 1 1 . . . . . . . . . . . . . . . Exploded 3 | . . 3 3 . 3 2 2 . . 2 . . 1 . . . . . . . . . . Melee 1 | . . . . . . . . . . . . . 1 . . 1 . . . 1 . . . Uniques/NPCs Destroyed 3 | . . . . . 2 . . . . . . . 1 . . . . . . . . . . 8R-AWN (-9/Exiles) EX-BIN (-9/Exiles) EX-DEC (-9/Exiles) EX-HEX (-9/Exiles) Z-Imprinter (-7/Deep Caves) Combat | -11 -10 -10 -9 -9 -9 -8 -8 -8 -7 -7 -7 -7 -7 -6 -6 -6 -6 -6 -5 -5 -5 -5 -5 -------- Run | Scr Mat Min Mat Min Exi Min Mat Sto Fac Low Low Zio Dee Pro Fac Low Low Dat Pro Fac Upp Upp Zhi Damage Taken 11337 | . 558 351 1170 . 450 758 1767 1050 1250 253 . . 1283 . . 31 111 . 161 747 54 224 1119 Core 2434 | . 91 82 222 . 81 79 272 122 127 15 . . 184 . . 8 56 . 41 212 . 80 762 Absorbed by Shields . | . . . . . . . . . . . . . . . . . . . . . . . . Core Remaining (%) 50 | 100 . 30 . . . 4 . 28 . . . . . 53 . . . . 87 . . . . Volleys Fired 475 | 11 59 32 81 . 13 22 62 77 66 13 . . 31 . . 8 . . . . . . . Largest 2 | 2 2 2 2 . 2 2 2 2 2 2 . . 1 . . 1 . . . . . . . Hottest 131 | 70 70 60 131 . 100 53 100 100 48 129 . . 69 . . 90 . . . . . . . Shots Fired 943 | 22 109 61 144 . 86 75 113 147 131 16 . . 31 . . 8 . . . . . . . Gun 817 | 22 107 43 115 . 68 74 103 145 131 8 . . . . . 1 . . . . . . . Cannon 46 | . . . 9 . 1 . 4 2 . 5 . . 18 . . 7 . . . . . . . Launcher 80 | . 2 18 20 . 17 1 6 . . 3 . . 13 . . . . . . . . . . Special . | . . . . . . . . . . . . . . . . . . . . . . . . Kinetic 719 | 11 75 32 73 . 68 74 103 145 131 6 . . . . . 1 . . . . . . . Thermal 110 | 11 32 11 42 . 1 . 2 1 . 3 . . . . . 7 . . . . . . . Explosive 64 | . 2 18 20 . 17 1 6 . . . . . . . . . . . . . . . . Electromagnetic 50 | . . . 9 . . . 2 1 . 7 . . 31 . . . . . . . . . . Robot Hit Streak 31 | 5 9 12 7 . 31 18 14 20 17 5 . . 6 . . 4 . . . . . . . Robot Miss Streak 5 | 3 5 2 4 . 2 3 5 4 5 2 . . 5 . . 4 . . . . . . . Penetration Max . | . . . . . . . . . . . . . . . . . . . . . . . . Secondary Targets 15 | . 1 2 2 . . 4 2 2 2 . . . . . . . . . . . . . . Max Gunslinging Chain 1 | . 1 1 1 . . 1 1 1 1 . . . . . . . . . . . . . . Autonomous 102 | . . . . . 68 34 . . . . . . . . . . . . . . . . . Shots Hit Robots 699 | 12 65 41 82 . 65 60 85 115 99 11 . . 28 . . 15 . . . 13 . . 8 Core Hits 423 | 5 33 33 62 . 38 30 68 57 40 8 . . 29 . . 12 . . . 5 . . 3 Critical Hits 13 | . 1 1 . . 3 . 1 3 . . . . 1 . . 2 . . . . . . 1 Critical Kills 3 | . . . . . . . 1 1 . . . . . . . 1 . . . . . . . Critical Parts Destroyed 9 | . 1 1 . . 3 . . 2 . . . . . . . 1 . . . . . . 1 Melee Attacks 161 | . . . . . . . . 6 . 8 3 56 28 3 7 14 1 . . 24 . 2 9 Impact 44 | . . . . . . . . . . . . 44 . . . . . . . . . . . Slashing 19 | . . . . . . . . . . . . . . . . . . . . 19 . . . Piercing 98 | . . . . . . . . 6 . 8 3 12 28 3 7 14 1 . . 5 . 2 9 Sneak Attacks 3 | . . . . . . . . . . . . . . . . . . . . 3 . . . Combat Hostiles . | . . . . . . . . . . . . . . . . . . . . . . . . Follow-up Attacks . | . . . . . . . . . . . . . . . . . . . . . . . . Damage Inflicted 18265 | 148 724 918 2220 . 2475 1631 2260 1763 1580 550 . . 1722 . . 616 . . . 752 . . 906 Guns 10069 | 148 724 240 1073 . 1728 1397 1250 1763 1580 140 . . . . . 26 . . . . . . . Cannons 978 | . . . 102 . 134 . 262 . . 91 . . 237 . . 152 . . . . . . . Explosions 4630 | . . 678 1033 . 613 224 748 . . 319 . . 1015 . . . . . . . . . . Melee 2566 | . . . . . . . . . . . . . 470 . . 438 . . . 752 . . 906 Ramming 22 | . . . 12 . . 10 . . . . . . . . . . . . . . . . . Kinetic 8941 | 34 425 156 454 . 1728 1397 1250 1763 1580 128 . . . . . 26 . . . . . . . Thermal 2663 | 114 299 84 619 . 134 125 507 . . 281 . . 348 . . 152 . . . . . . . Explosive 2900 | . . 678 1033 . 613 99 477 . . . . . . . . . . . . . . . . Electromagnetic 1173 | . . . 102 . . . 26 . . 141 . . 904 . . . . . . . . . . Impact . | . . . . . . . . . . . . . . . . . . . . . . . . Slashing 752 | . . . . . . . . . . . . . . . . . . . . 752 . . . Piercing 1814 | . . . . . . . . . . . . . 470 . . 438 . . . . . . 906 Highest Corruption 3 | . . . 1 1 1 1 . 3 1 2 2 2 . . . . . . . 2 2 2 2 Average Corruption 1 | . . . 1 1 1 1 . 2 1 1 2 2 . . . . . . . 1 2 2 2 Corruption Purged . | . . . . . . . . . . . . . . . . . . . . . . . . Effects 51 | . . . . 3 11 5 . 19 . 3 2 . . . . . . . . 4 1 . 3 Message Errors 18 | . . . . 3 6 1 . 4 . . 1 . . . . . . . . 3 . . . Matter Fused 2 | . . . . . . . . 2 . . . . . . . . . . . . . . . Heat Flow Errors 5 | . . . . . . . . 2 . 2 . . . . . . . . . . . . 1 Energy Discharges 9 | . . . . . 4 1 . 3 . . . . . . . . . . . . . . 1 Data Loss (minor) 13 | . . . . . 1 2 . 7 . 1 1 . . . . . . . . . 1 . . Targeting Errors 3 | . . . . . . . . 1 . . . . . . . . . . . 1 . . 1 Weapon Failures 1 | . . . . . . 1 . . . . . . . . . . . . . . . . . Overload Shots . | . . . . . . . . . . . . . . . . . . . . . . . . Overflow Damage 766 | . . 71 53 . 9 20 56 . . 57 . . . . . 7 . . . 200 . . 293 Projectiles 69 | . . . 14 . . . . . . 48 . . . . . 7 . . . . . . . Explosions 201 | . . 71 36 . 9 20 56 . . 9 . . . . . . . . . . . . . Melee 496 | . . . 3 . . . . . . . . . . . . . . . . 200 . . 293 Knockbacks . | . . . . . . . . . . . . . . . . . . . . . . . . Impact . | . . . . . . . . . . . . . . . . . . . . . . . . Kinetic . | . . . . . . . . . . . . . . . . . . . . . . . . Secondary . | . . . . . . . . . . . . . . . . . . . . . . . . Self-Inflicted Damage 612 | . . 51 79 . . 71 258 55 . 68 . . 30 . . . . . . . . . . Shots 20 | . . 2 4 . . 2 8 1 . 2 . . 1 . . . . . . . . . . Rammed 3 | . . . 2 . . 1 . . . . . . . . . . . . . . . . . Targets Rammed 3 | . . . 2 . . 1 . . . . . . . . . . . . . . . . . Kicked . | . . . . . . . . . . . . . . . . . . . . . . . . Crushed . | . . . . . . . . . . . . . . . . . . . . . . . . Highest Temperature 354 | 54 109 64 280 . 24 15 51 257 54 264 . . 354 . . 331 . . . 10 1 1 197 Average Temperature 67 | 20 38 21 83 . 9 4 16 66 13 104 . . 108 . . 177 . . . 4 1 1 117 Received Heat Transfer 2758 | . 180 202 342 . . 270 639 396 273 36 . . 237 . . . 54 . 27 45 12 45 . Effects 5 | . . . 2 . . . . 2 . . . . 1 . . . . . . . . . . Interference 4 | . . . 2 . . . . 2 . . . . . . . . . . . . . . . Matter Decay 1 | . . . . . . . . . . . . . 1 . . . . . . . . . . Siege Activations . | . . . . . . . . . . . . . . . . . . . . . . . . Robots Corrupted 3 | . . . . . . . . . . . . . 3 . . . . . . . . . . Combat Hostiles 3 | . . . . . . . . . . . . . 3 . . . . . . . . . . Parts Fried 13 | . . . 5 . . . . . . . . . 8 . . . . . . . . . . Impact Corruptions 1 | . . . 1 . . . . . . . . . . . . . . . . . . . . Robots Melted . | . . . . . . . . . . . . . . . . . . . . . . . . Combat Hostiles . | . . . . . . . . . . . . . . . . . . . . . . . . Parts Melted 7 | . 2 . 1 . . 2 1 . . . . . 1 . . . . . . . . . . Heat Transferred 3731 | 333 805 200 1073 . 80 150 480 . . 210 . . 300 . . 100 . . . . . . . Parts Sabotaged . | . . . . . . . . . . . . . . . . . . . . . . . . Parts Stolen 2 | . . . . . . . . . . 1 . . . . . 1 . . . . . . . Parts Stripped . | . . . . . . . . . . . . . . . . . . . . . . . . Power Chain Reactions 6 | . . . . . . . . . . 1 . . 5 . . . . . . . . . . Missiles Intercepted . | . . . . . . . . . . . . . . . . . . . . . . . . Alert | -11 -10 -10 -9 -9 -9 -8 -8 -8 -7 -7 -7 -7 -7 -6 -6 -6 -6 -6 -5 -5 -5 -5 -5 ------- Run | Scr Mat Min Mat Min Exi Min Mat Sto Fac Low Low Zio Dee Pro Fac Low Low Dat Pro Fac Upp Upp Zhi Peak Influence 957 | 20 266 143 520 151 . 371 552 957 508 . . . . . 87 . . . . 635 . . . Initial 402 | . 13 83 . 151 . . 85 232 402 . . . . . . . . . . 34 . . . Average 272 | 7 150 32 274 151 . 259 335 561 391 . . . . . 22 . . . . 213 . . . Maximum Alert Level 3 | . 1 . 2 . . 1 2 3 2 . . . . . . . . . . 2 . . . Low Security (%) 41 | 100 66 100 23 100 . 20 22 4 . . . . . . 100 . . . . 67 . . . Level 1 29 | . 33 . 57 . . 79 39 15 44 . . . . . . . . . . . . . . Level 2 25 | . . . 19 . . . 37 55 55 . . . . . . . . . . 32 . . . Level 3 4 | . . . . . . . . 25 . . . . . . . . . . . . . . . Level 4 . | . . . . . . . . . . . . . . . . . . . . . . . . Level 5 . | . . . . . . . . . . . . . . . . . . . . . . . . High Security . | . . . . . . . . . . . . . . . . . . . . . . . . Max Security . | . . . . . . . . . . . . . . . . . . . . . . . . Squads Dispatched 37 | . 3 . 4 . . . 9 7 7 . . . . . 1 . . . . 5 . 1 . Investigation 11 | . 2 . 1 . . . 1 4 . . . . . . 1 . . . . 2 . . . Extermination 3 | . . . . . . . . . 3 . . . . . . . . . . . . . . Reinforcement 13 | . 1 . 3 . . . 4 3 1 . . . . . . . . . . 1 . . . Assault 3 | . . . . . . . . . . . . . . . . . . . . 2 . 1 . Garrison 7 | . . . . . . . 4 . 3 . . . . . . . . . . . . . . Intercept . | . . . . . . . . . . . . . . . . . . . . . . . . Construction Impeded 2 | . . . . . . . 2 . . . . . . . . . . . . . . . . Haulers Reinforced . | . . . . . . . . . . . . . . . . . . . . . . . . Stealth | -11 -10 -10 -9 -9 -9 -8 -8 -8 -7 -7 -7 -7 -7 -6 -6 -6 -6 -6 -5 -5 -5 -5 -5 --------- Run | Scr Mat Min Mat Min Exi Min Mat Sto Fac Low Low Zio Dee Pro Fac Low Low Dat Pro Fac Upp Upp Zhi Distress Signals 15 | . 3 2 3 . . . 3 . . . . . . . 1 . . . . 3 . . . Communications Jammed . | . . . . . . . . . . . . . . . . . . . . . . . . Distress Signals . | . . . . . . . . . . . . . . . . . . . . . . . . Times Spotted 345 | . 25 13 43 . 12 20 37 46 26 5 2 . 19 2 6 9 5 . 3 54 5 11 2 Peak Tracking Total 12 | . 4 4 7 . 9 4 8 6 6 3 4 . 5 4 3 4 5 . 3 10 4 12 3 Tactical Retreats 33 | . 1 1 1 . 1 . 2 1 1 . 2 . . . 2 4 . . . 10 3 4 . Traps | -11 -10 -10 -9 -9 -9 -8 -8 -8 -7 -7 -7 -7 -7 -6 -6 -6 -6 -6 -5 -5 -5 -5 -5 ------- Run | Scr Mat Min Mat Min Exi Min Mat Sto Fac Low Low Zio Dee Pro Fac Low Low Dat Pro Fac Upp Upp Zhi Traps Triggered 11 | . 2 . 2 . . . . 3 2 . . . . . 1 . . . . 1 . . . Indirectly . | . . . . . . . . . . . . . . . . . . . . . . . . Trap Hack Attempts . | . . . . . . . . . . . . . . . . . . . . . . . . Triggered . | . . . . . . . . . . . . . . . . . . . . . . . . Disarmed . | . . . . . . . . . . . . . . . . . . . . . . . . Reprogrammed . | . . . . . . . . . . . . . . . . . . . . . . . . Reused . | . . . . . . . . . . . . . . . . . . . . . . . . Traps Extracted . | . . . . . . . . . . . . . . . . . . . . . . . . Installed . | . . . . . . . . . . . . . . . . . . . . . . . . Triggered 11 | . . . . . . . . . . 1 3 . . . . 6 . . 1 . . . . Machines | -11 -10 -10 -9 -9 -9 -8 -8 -8 -7 -7 -7 -7 -7 -6 -6 -6 -6 -6 -5 -5 -5 -5 -5 ---------- Run | Scr Mat Min Mat Min Exi Min Mat Sto Fac Low Low Zio Dee Pro Fac Low Low Dat Pro Fac Upp Upp Zhi Machines Disabled 27 | . . . 4 . 9 5 1 6 . . . . 1 . . . . . . . . . 1 Max in Single Turn 5 | . . . 1 . 2 5 1 1 . . . . . . . . . . . . . . 1 Garrison Access 6 | . . . . . . . . 1 1 . . . . . 3 . . . . 1 . . . Machines Sabotaged . | . . . . . . . . . . . . . . . . . . . . . . . . Garrisons Compromised . | . . . . . . . . . . . . . . . . . . . . . . . . Overloaded Fab Kills . | . . . . . . . . . . . . . . . . . . . . . . . . Fab Network Shutdowns 1 | . . . . . . . . . . . . . . . . . . . . 1 . . . Hacking | -11 -10 -10 -9 -9 -9 -8 -8 -8 -7 -7 -7 -7 -7 -6 -6 -6 -6 -6 -5 -5 -5 -5 -5 --------- Run | Scr Mat Min Mat Min Exi Min Mat Sto Fac Low Low Zio Dee Pro Fac Low Low Dat Pro Fac Upp Upp Zhi Machines Accessed 81 | . 8 . 11 . 2 . 3 13 7 . 3 1 . . 8 1 . 4 . 10 . 1 9 Terminals 36 | . 6 . 6 . . . 2 10 3 . 1 . . . 3 . . . . 5 . . . Fabricators 6 | . . . . . . . . . 2 . . . . . 2 . . . . 2 . . . Repair Stations 3 | . . . 2 . . . . 1 . . . . . . . . . . . . . . . Recycling Units 7 | . 2 . 2 . . . 1 1 . . . . . . . . . . . 1 . . . Scanalyzers 3 | . . . 1 . . . . . 1 . . . . . . . . . . 1 . . . Garrison Access 6 | . . . . . . . . 1 1 . . . . . 3 . . . . 1 . . . Total Hacks 249 | . 28 . 23 . 2 . 7 40 15 . 11 5 . . 19 1 . 25 . 24 . 1 48 Successful 186 | . 20 . 15 . 2 . 4 19 7 . 11 5 . . 16 1 . 25 . 12 . 1 48 Failed 62 | . 7 . 8 . . . 3 21 8 . . . . . 3 . . . . 12 . . . Catastrophic 7 | . 1 . 2 . . . . 2 1 . . . . . . . . . . 1 . . . Database Lockouts 1 | . 1 . . . . . . . . . . . . . . . . . . . . . . Manual 70 | . 24 . 9 . 1 . 4 16 1 . . 1 . . 6 . . . . 8 . . . Terminals 114 | . 26 . 15 . . . 6 34 9 . 2 . . . 8 . . . . 14 . . . Fabricators 14 | . . . . . . . . . 3 . . . . . 6 . . . . 5 . . . Repair Stations 5 | . . . 3 . . . . 2 . . . . . . . . . . . . . . . Recycling Units 8 | . 2 . 3 . . . 1 1 . . . . . . . . . . . 1 . . . Scanalyzers 6 | . . . 2 . . . . . 2 . . . . . . . . . . 2 . . . Garrison Access 11 | . . . . . . . . 3 1 . . . . . 5 . . . . 2 . . . Terminal Hacks 132 | . 6 . 8 . 2 . 3 12 4 . 11 5 . . 4 1 . 25 . 2 . 1 48 Record 58 | . . . . . 1 . . . . . 10 . . . . . . 11 . . . . 36 Part Schematic 20 | . 1 . . . . . . 1 . . . 5 . . 2 . . 7 . . . . 4 Robot Schematic 4 | . . . . . . . . . . . . . . . . . . 4 . . . . . Robot Analysis 5 | . 1 . . . . . . . . . . . . . . . . . . . . . 4 Prototype ID Bank 13 | . 1 . 1 . . . . 2 . . . . . . 1 . . 3 . 1 . . 4 Open Door 5 | . . . . . . . . 2 . . 1 . . . . 1 . . . . . 1 . Branch Access Points 3 | . . . 1 . . . 1 . 1 . . . . . . . . . . . . . . Terminal Index 1 | . . . . . . . . . 1 . . . . . . . . . . . . . . Unreport Threat 4 | . . . 1 . . . . 3 . . . . . . . . . . . . . . . Locate Traps 6 | . 1 . 1 . . . . 1 2 . . . . . . . . . . 1 . . . Hauler Manifests 6 | . 1 . 1 . . . 2 2 . . . . . . . . . . . . . . . Zone Layout 6 | . 1 . 3 . . . . 1 . . . . . . 1 . . . . . . . . EX-Prototype ID Bank 1 | . . . . . 1 . . . . . . . . . . . . . . . . . . Fabricator Hacks 12 | . . . . . . . . . 2 . . . . . 6 . . . . 4 . . . Load Schematic 5 | . . . . . . . . . 1 . . . . . 2 . . . . 2 . . . Build 7 | . . . . . . . . . 1 . . . . . 4 . . . . 2 . . . Repair Station Hacks 4 | . . . 2 . . . . 2 . . . . . . . . . . . . . . . Scan Component 2 | . . . 1 . . . . 1 . . . . . . . . . . . . . . . Repair 2 | . . . 1 . . . . 1 . . . . . . . . . . . . . . . Recycling Unit Hacks 3 | . . . 2 . . . . . . . . . . . . . . . . 1 . . . Report Inventory 3 | . . . 2 . . . . . . . . . . . . . . . . 1 . . . Scanalyzer 4 | . . . 2 . . . . . . . . . . . . . . . . 2 . . . Insert Component 2 | . . . 1 . . . . . . . . . . . . . . . . 1 . . . Analyze 2 | . . . 1 . . . . . . . . . . . . . . . . 1 . . . Garrison Access Hacks 5 | . . . . . . . . . 1 . . . . . 3 . . . . 1 . . . Seal Access 5 | . . . . . . . . . 1 . . . . . 3 . . . . 1 . . . Unauthorized Hacks 26 | . 14 . 1 . . . 1 5 . . . . . . 3 . . . . 2 . . . Terminals 20 | . 12 . . . . . . 3 . . . . . . 3 . . . . 2 . . . Track 4 | . 3 . . . . . . 1 . . . . . . . . . . . . . . . Assimilate 3 | . 3 . . . . . . . . . . . . . . . . . . . . . . Botnet 11 | . 5 . . . . . . 1 . . . . . . 3 . . . . 2 . . . Operators 2 | . 1 . . . . . . 1 . . . . . . . . . . . . . . . Fabricators . | . . . . . . . . . . . . . . . . . . . . . . . . Repair Stations . | . . . . . . . . . . . . . . . . . . . . . . . . Recycling Units 5 | . 2 . 1 . . . 1 1 . . . . . . . . . . . . . . . Tunnel 5 | . 2 . 1 . . . 1 1 . . . . . . . . . . . . . . . Scanalyzers . | . . . . . . . . . . . . . . . . . . . . . . . . Garrison Access 1 | . . . . . . . . 1 . . . . . . . . . . . . . . . Jam 1 | . . . . . . . . 1 . . . . . . . . . . . . . . . Data Cores Recovered 1 | . . . . . . . 1 . . . . . . . . . . . . . . . . Used . | . . . . . . . . . . . . . . . . . . . . . . . . Hacking Detections 45 | . 5 . 7 . . . 2 12 5 . . . . . 5 . . . . 9 . . . Full Trace Events 3 | . . . . . . . . 1 . . . . . . . . . . . 2 . . . Feedback Events 2 | . . . . . . . . 1 . . . . . . . . . . . 1 . . . Corruption 2 | . . . . . . . . 1 . . . . . . . . . . . 1 . . . Feedback Blocked . | . . . . . . . . . . . . . . . . . . . . . . . . Robot Schematics Acquired 4 | . . . . . . . . . . . . . . . . . . 4 . . . . . Robots Built . | . . . . . . . . . . . . . . . . . . . . . . . . Matter . | . . . . . . . . . . . . . . . . . . . . . . . . Time . | . . . . . . . . . . . . . . . . . . . . . . . . Total Robot Build Rating . | . . . . . . . . . . . . . . . . . . . . . . . . Part Schematics Acquired 22 | . 1 . 1 . . . . 1 . . . 5 . . 2 . . 7 . 1 . . 4 Parts Built 8 | . . . . . . . . . 1 . . . . . 4 . . . . 3 . . . Matter 1219 | . . . . . . . . . 146 . . . . . 642 . . . . 431 . . . Time 481 | . . . . . . . . . 36 . . . . . 334 . . . . 111 . . . Total Part Build Rating 26 | . . . . . . . . . 3 . . . . . 8 . . . . 15 . . . Parts Repaired 2 | . . . 1 . . . . 1 . . . . . . . . . . . . . . . Time 124 | . . . 44 . . . . 80 . . . . . . . . . . . . . . . Parts Recycled . | . . . . . . . . . . . . . . . . . . . . . . . . Recycled Matter . | . . . . . . . . . . . . . . . . . . . . . . . . Retrieved Matter . | . . . . . . . . . . . . . . . . . . . . . . . . Retrieved Components . | . . . . . . . . . . . . . . . . . . . . . . . . Parts Scanalyzed 2 | . . . 1 . . . . . . . . . . . . . . . . 1 . . . Part Schematics Acquired 2 | . . . 1 . . . . . . . . . . . . . . . . 1 . . . Parts Damaged 1 | . . . 1 . . . . . . . . . . . . . . . . . . . . Bothacking | -11 -10 -10 -9 -9 -9 -8 -8 -8 -7 -7 -7 -7 -7 -6 -6 -6 -6 -6 -5 -5 -5 -5 -5 ------------ Run | Scr Mat Min Mat Min Exi Min Mat Sto Fac Low Low Zio Dee Pro Fac Low Low Dat Pro Fac Upp Upp Zhi Used RIF Installer . | . . . . . . . . . . . . . . . . . . . . . . . . Robots Hacked . | . . . . . . . . . . . . . . . . . . . . . . . . Non-combat . | . . . . . . . . . . . . . . . . . . . . . . . . Combat . | . . . . . . . . . . . . . . . . . . . . . . . . Robot Hacks Applied . | . . . . . . . . . . . . . . . . . . . . . . . . Relay Couplers Released . | . . . . . . . . . . . . . . . . . . . . . . . . Robots Rewired . | . . . . . . . . . . . . . . . . . . . . . . . . Allies Hacked . | . . . . . . . . . . . . . . . . . . . . . . . . Hacks Repelled . | . . . . . . . . . . . . . . . . . . . . . . . . Allies | -11 -10 -10 -9 -9 -9 -8 -8 -8 -7 -7 -7 -7 -7 -6 -6 -6 -6 -6 -5 -5 -5 -5 -5 -------- Run | Scr Mat Min Mat Min Exi Min Mat Sto Fac Low Low Zio Dee Pro Fac Low Low Dat Pro Fac Upp Upp Zhi Total Allies 17 | . 1 . . . . . . 10 . . . 5 . . . . . . 1 . . . . Largest Group 10 | . 1 . . . . . . 10 2 . . 5 5 . . . . . 1 . . . . Highest-Rated Group 252 | . 10 . . . . . . 173 32 . . 252 252 . . . . . 94 . . . . Highest-Rated Ally 94 | . 10 . . . . . . 29 16 . . 94 94 . . . . . 94 . . . . Total Orders 2 | . . . . . . . . 2 . . . . . . . . . . . . . . . STAY 1 | . . . . . . . . 1 . . . . . . . . . . . . . . . FOLLOW 1 | . . . . . . . . 1 . . . . . . . . . . . . . . . Ally Attacks 196 | . . . . . . . . 94 10 . . . 68 . . . . . 10 . 14 . . Total Damage 4070 | . . . . . . . . 1331 129 . . . 1633 . . . . . 319 . 658 . . Kills 34 | . . . . . . . . 13 1 . . . 15 . . . . . 3 . 2 . . Allies Corrupted . | . . . . . . . . . . . . . . . . . . . . . . . . Allies Melted 1 | . . . . . . . . . . . . . . . . . . . 1 . . . . Turrets Deployed 1 | . . . . . . . . . . . . . . . . . . . . . 1 . . Intel | -11 -10 -10 -9 -9 -9 -8 -8 -8 -7 -7 -7 -7 -7 -6 -6 -6 -6 -6 -5 -5 -5 -5 -5 ------- Run | Scr Mat Min Mat Min Exi Min Mat Sto Fac Low Low Zio Dee Pro Fac Low Low Dat Pro Fac Upp Upp Zhi Robot Analysis Total 5 | . 1 . . . . . . . . . . . . . . . . . . . . . 4 Derelict Logs Recovered 9 | . . 1 . . . . . . . 2 2 . . . . . . . . . 3 1 . Drone Launches . | . . . . . . . . . . . . . . . . . . . . . . . . Drone Recoveries . | . . . . . . . . . . . . . . . . . . . . . . . . Exploration | -11 -10 -10 -9 -9 -9 -8 -8 -8 -7 -7 -7 -7 -7 -6 -6 -6 -6 -6 -5 -5 -5 -5 -5 ------------- Run | Scr Mat Min Mat Min Exi Min Mat Sto Fac Low Low Zio Dee Pro Fac Low Low Dat Pro Fac Upp Upp Zhi Turns Passed 18854 | 127 1111 1533 1873 230 3170 817 608 1854 1747 288 166 1180 1244 198 615 219 101 29 115 1060 97 110 362 Spaces Moved 15535 | 79 737 492 773 116 1471 327 179 781 809 532 392 2126 1767 414 930 336 284 84 325 1738 287 340 216 Core 4 | 1 3 . . . . . . . . . . . . . . . . . . . . . . Treads 3983 | . 86 1 366 116 1471 327 151 686 779 . . . . . . . . . . . . . . Legs 5 | . . . . . . . 5 . . . . . . . . . . . . . . . . Wheels 1742 | 78 648 491 407 . . . 23 95 . . . . . . . . . . . . . . . Hover . | . . . . . . . . . . . . . . . . . . . . . . . . Flight 9801 | . . . . . . . . . 30 532 392 2126 1767 414 930 336 284 84 325 1738 287 340 216 Fastest Speed 26 | 50 100 130 140 200 180 220 180 165 39 39 39 39 39 42 39 34 34 34 34 26 29 29 29 Average Speed 89 | 99 118 130 196 200 203 220 195 180 175 39 39 39 42 42 39 38 34 34 34 28 29 29 54 Slowest Speed 300 | 100 160 200 260 200 260 220 300 220 205 124 39 39 50 42 124 109 34 34 34 34 29 29 97 Overloaded Moves . | . . . . . . . . . . . . . . . . . . . . . . . . Propulsion Burnouts . | . . . . . . . . . . . . . . . . . . . . . . . . Robots Hopped 27 | . . . . . . . . . . 1 . . . . 3 2 . . . 21 . . . Cave-ins Triggered . | . . . . . . . . . . . . . . . . . . . . . . . . Teleports 1 | . . . . . . . . . . . . . . . . . . . . . . . 1 Exploration Rate (%) 58 | 6 94 82 69 28 92 58 15 93 25 72 60 87 84 64 25 48 50 71 51 40 56 61 68 Regions Visited 23 Branch Regions 17 Pre-discovered Areas 11 | . 2 . 1 . 1 . 1 1 . . . 1 . . . . . 1 . . . . 3 Known Exits Taken 16 | . . . 1 . . . 1 . 1 1 1 1 1 1 1 1 1 1 1 1 1 1 . Unknown Exits Taken 7 | 1 1 1 . 1 1 1 . 1 . . . . . . . . . . . . . . . Scrap Searched 16 | . . 3 . . . . . . . 3 1 3 . . . 1 1 . 2 . . 2 . Spaces Dug 67 | . 6 19 . . . . . . . 6 3 4 9 3 7 2 1 . . 5 . 2 . Terrain Destroyed 507 | . 15 128 51 . 79 64 54 14 . 45 3 4 28 3 7 4 1 . . 5 . 2 . Melee 42 | . . . . . . . . . . 6 3 4 9 3 7 2 1 . . 5 . 2 . Projectile 53 | . . . . . 24 25 . . . 2 . . . . . 2 . . . . . . . AOE 412 | . 15 128 51 . 55 39 54 14 . 37 . . 19 . . . . . . . . . . Terrain Rammed . | . . . . . . . . . . . . . . . . . . . . . . . . Walls Destroyed . | . . . . . . . . . . . . . . . . . . . . . . . . Machines Disabled . | . . . . . . . . . . . . . . . . . . . . . . . . Actions | -11 -10 -10 -9 -9 -9 -8 -8 -8 -7 -7 -7 -7 -7 -6 -6 -6 -6 -6 -5 -5 -5 -5 -5 --------- Run | Scr Mat Min Mat Min Exi Min Mat Sto Fac Low Low Zio Dee Pro Fac Low Low Dat Pro Fac Upp Upp Zhi Total 19464 | 102 875 1329 998 115 1641 383 319 1084 1036 573 401 2420 2182 431 1159 392 285 83 328 2232 300 347 449 Wait 2665 | . 40 794 50 . 61 24 41 137 79 1 2 236 285 15 208 10 . . 4 461 13 4 200 Move 15462 | 78 736 491 772 115 1470 326 178 780 808 529 391 2125 1766 413 923 331 283 83 324 1699 286 339 216 Hop 23 | . . . . . . . . . . 1 . . . . 3 2 . . . 17 . . . Pick Up 184 | 6 17 5 37 . 32 3 13 18 24 . 1 1 12 . 2 1 . . . 5 . . 7 Fast Attach 95 | 7 9 . 1 . 8 . 5 6 5 5 1 4 19 . 5 3 . . . 14 . 1 2 Attach 68 | . 2 5 5 . 8 4 15 6 7 1 . . 4 . . 3 . . . 2 . . 6 Detach 19 | . . . . . 7 . 4 1 1 1 . . 1 . . 1 . . . . . 1 2 Swap 99 | . 5 2 23 . 6 . 1 23 7 11 1 . 11 . 3 3 1 . . 1 . . 1 Drop 213 | . 7 . 27 . 36 3 . 30 35 3 2 5 25 . 8 16 . . . 9 1 . 6 Fire 475 | 11 59 32 81 . 13 22 62 77 66 13 . . 31 . . 8 . . . . . . . Melee 154 | . . . . . . . . 6 . 8 3 49 28 3 7 14 1 . . 24 . 2 9 Ram . | . . . . . . . . . . . . . . . . . . . . . . . . Kick . | . . . . . . . . . . . . . . . . . . . . . . . . Crush 3 | . . . 2 . . 1 . . . . . . . . . . . . . . . . . Escape Stasis 4 | . . . . . . . . . 4 . . . . . . . . . . . . . . Rewire . | . . . . . . . . . . . . . . . . . . . . . . . . Trap . | . . . . . . . . . . . . . . . . . . . . . . . . Miscellaneous . | . . . . . . . . . . . . . . . . . . . . . . . . Route ------- -11/Scrapyard -10/Materials (discovered 4 exits: *Mat x3 / [*Min]) -10/Mines (discovered 2 exits: *Mat x2) -9/Materials (discovered 3 exits: *Mat x2 / *Min) -9/Mines (discovered 3 exits: *Mat x2 / *Exi) -9/Exiles (discovered 2 exits: [*Min x2]) -8/Mines -8/Materials (discovered 2 exits: *Sto x2) -8/Storage (discovered 2 exits: *Fac / [Rec]) -7/Factory (discovered 4 exits: *Fac x2 / *Low x2) -7/Lower Caves -7/Lower Caves (discovered 2 exits: *Fac / *Zio) -7/Zion (discovered 2 exits: *Dee / [*Pro]) -7/Deep Caves -6/Proximity Caves -6/Factory (discovered 4 exits: Fac x2 / *Low x2) -6/Lower Caves -6/Lower Caves -6/Data Miner -5/Proximity Caves -5/Factory (discovered 2 exits: *Fac / *Upp) -5/Upper Caves -5/Upper Caves (discovered 2 exits: *Fac / *Zhi) -5/Zhirov (discovered 1 exit: [*Pro]) History --------- Turn | Location | Event 23 | -11/Scrapyard | Discovered new exit (range 15) 128 | -11/Scrapyard | Entered Materials 330 | -10/Materials | Build established: Mutant 363 | -10/Materials | Central database locked down 408 | -10/Materials | Discovered new exit (range 11) 753 | -10/Materials | Discovered new exit (range 16) 976 | -10/Materials | Discovered new exit (range 8) 1132 | -10/Materials | Discovered new exit (range 8) 1239 | -10/Materials | Entered Mines 1246 | -10/Mines | Met a Derelict bent on vengeance 1252 | -10/Mines | Learned Materials terminal intel 1289 | -10/Mines | Discovered new exit (range 9) 1406 | -10/Mines | Core integrity fell below 50% 1432 | -10/Mines | Lost 4 parts (2n2w) 1641 | -10/Mines | Assembled infested the area 2402 | -10/Mines | Discovered new exit (range 11) 2772 | -10/Mines | Entered Materials 2772 | -9/Materials | Evolved 2 slots: Utility x2 2773 | -9/Materials | Loaded intel: 12 terminal locations 3173 | -9/Materials | Build established: Hauler-Mutant 3198 | -9/Materials | Discovered new exit (range 3) 3520 | -9/Materials | Identified exit to Mines 4235 | -9/Materials | Repaired Broken VTOL Module 4379 | -9/Materials | Discovered new exit (range 4) 4442 | -9/Materials | Core integrity fell below 50% 4645 | -9/Materials | Entered Mines 4709 | -9/Mines | Discovered new exit (range 3) 4789 | -9/Mines | Discovered new exit (range 11) 4857 | -9/Mines | Deemed a non-threat by the Exiles lab entrance 4859 | -9/Mines | Discovered new exit (range 5) 4875 | -9/Mines | Entered Exiles 4901 | -9/Exiles | Discovered new exit (range 15) 4924 | -9/Exiles | Met 8R-AWN 4960 | -9/Exiles | Met EX-HEX 5062 | -9/Exiles | Met EX-DEC 5166 | -9/Exiles | Discovered new exit (range 12) 5242 | -9/Exiles | Learned location of Zion (-7) 5920 | -9/Exiles | Met EX-BIN 6120 | -9/Exiles | Aligned with FarCom system 6122 | -9/Exiles | Given EX-Vault access code 6168 | -9/Exiles | Opened EX-Vault 6178 | -9/Exiles | Found Flying Fortress v7 6187 | -9/Exiles | Found YOLO Cannon 6192 | -9/Exiles | Found AWS/Gauss 6235 | -9/Exiles | Warned to stay clear of 0b10 Research branches 6373 | -9/Exiles | Attacked by the Exiles 6430 | -9/Exiles | Destroyed 7 combat bots 6485 | -9/Exiles | Destroyed 8R-AWN 6750 | -9/Exiles | Destroyed EX-BIN 6753 | -9/Exiles | Destroyed EX-DEC 6759 | -9/Exiles | Destroyed EX-HEX 6822 | -9/Exiles | Found Deploy-a-Sentry 8045 | -9/Exiles | Stole four prototypes: AWS/Gauss, Flying Fortress v7, YOLO Cannon, Deploy-a-Sentry 8045 | -9/Exiles | Entered Mines 8124 | -8/Mines | Discovered new exit (range 5) 8656 | -8/Mines | Core integrity fell below 20% 8862 | -8/Mines | Entered Materials 8862 | -8/Materials | Evolved 2 slots: Propulsion x2 9029 | -8/Materials | Discovered new exit (range 3) 9056 | -8/Materials | Identified exit to Storage 9116 | -8/Materials | Garrison activated, responded to threat 9234 | -8/Materials | Garrison activated, responded to threat 9349 | -8/Materials | Lost 6 parts (1p3n2w) 9411 | -8/Materials | Lost 4 parts (1p1n2w) 9470 | -8/Materials | Entered Storage 9519 | -8/Storage | Core integrity fell below 50% 10368 | -8/Storage | Discovered new exit (range 14) 10448 | -8/Storage | Assisted by bots powering up and referring to "LRC-V3" 10812 | -8/Storage | Repaired Cold Fusion Reactor 11262 | -8/Storage | Discovered new exit (range 16) 11324 | -8/Storage | Entered Factory 11324 | -7/Factory | Accompanied by 2 allies 11324 | -7/Factory | Evolved 2 slots: Power x1, Propulsion x1 11584 | -7/Factory | Identified exit to Lower Caves 12237 | -7/Factory | Garrison activated, responded to threat 12285 | -7/Factory | Discovered new exit (range 3) 12306 | -7/Factory | Lost 3 parts (1p1n1w) 12801 | -7/Factory | Fabricated Adv. Sensor Array (x1) 12830 | -7/Factory | Discovered new exit (range 15) 13071 | -7/Factory | Entered Lower Caves 13093 | -7/Lower Caves | Encountered a Warlord checkpoint 13094 | -7/Lower Caves | Learned Factory emergency access door positions 13109 | -7/Lower Caves | Cold Fusion Reactor stolen by Master Thief 13218 | -7/Lower Caves | Learned Factory emergency access door positions 13320 | -7/Lower Caves | Attracted the attention of an 0b10 checkpoint 13355 | -7/Lower Caves | Discovered new exit (range 6) 13357 | -7/Lower Caves | Identified exit to Lower Caves 13359 | -7/Lower Caves | Entered another Lower Caves area 13368 | -7/Lower Caves | Discovered new exit (range 9) 13377 | -7/Lower Caves | Ambushed by wild Derelicts 13399 | -7/Lower Caves | Learned 12 Factory zone layouts 13474 | -7/Lower Caves | Learned Factory machine intel 13484 | -7/Lower Caves | Learned location of 1 exit from Factory 13484 | -7/Lower Caves | Learned location of 1 exit from Research 13484 | -7/Lower Caves | Learned 8 Factory zone layouts 13484 | -7/Lower Caves | Learned Armory security intel 13514 | -7/Lower Caves | Discovered new exit (range 6) 13516 | -7/Lower Caves | Identified exit to Zion 13525 | -7/Lower Caves | Entered Zion 13534 | -7/Zion | Given the Hacking Drone Bay 13535 | -7/Zion | Found Prototype Device 13535 | -7/Zion | Identified Hacking Drone Bay 13545 | -7/Zion | Received a visual enhancement algorithm 13570 | -7/Zion | Discovered new exit (range 13) 13578 | -7/Zion | System corruption cleaned by Quarantine Array 13590 | -7/Zion | Found CR-A16's Pointy Stick 13709 | -7/Zion | Build established: Mutant 13716 | -7/Zion | Given A8's code to call for help 13761 | -7/Zion | Learned location of Armory (-3) 13788 | -7/Zion | Gained Derelict followers 14170 | -7/Zion | Enhanced Grunt warped into view, answering call for help 14171 | -7/Zion | Enhanced Grunt warped into view, answering call for help 14656 | -7/Zion | Discovered new exit (range 5) 14656 | -7/Zion | Saw the warning signs outside the Deep Caves entrance 14704 | -7/Zion | Identified exit to Deep Caves 14705 | -7/Zion | Entered Deep Caves 14705 | -7/Deep Caves | Accompanied by 5 allies 14768 | -7/Deep Caves | Attacked by Z-Imprinter 14781 | -7/Deep Caves | Allies destroyed Z-Imprinter 14790 | -7/Deep Caves | Found Prototype Protection 14790 | -7/Deep Caves | Identified Zio. Weapon Casing 14892 | -7/Deep Caves | Z-Facility disabled 15359 | -7/Deep Caves | Discovered new exit (range 6) 15361 | -7/Deep Caves | Identified exit to Proximity Caves 15422 | -7/Deep Caves | Spotted as-94574 15492 | -7/Deep Caves | Lost 6 parts (2p1n2u1w) 15518 | -7/Deep Caves | Destroyed as-94574 15522 | -7/Deep Caves | Found GOLEM Unit 15527 | -7/Deep Caves | Found Prototype Device 15527 | -7/Deep Caves | Identified Exp. Thermal Shield 15647 | -7/Deep Caves | Spotted as-46254 15818 | -7/Deep Caves | Found Zio. Weapon Casing 15854 | -7/Deep Caves | Found Zio. Weapon Casing 15949 | -7/Deep Caves | Entered Proximity Caves 16144 | -6/Proximity Caves | Discovered new exit (range 8) 16147 | -6/Proximity Caves | Identified exit to Factory 16147 | -6/Proximity Caves | Entered Factory 16147 | -6/Factory | Evolved 2 slots: Utility x2 16148 | -6/Factory | Identified exit to Lower Caves 16149 | -6/Factory | Identified exit to Factory 16151 | -6/Factory | Loaded intel: 262 machine locations 16313 | -6/Factory | Fabricated Imp. VTOL Module (x1) 16401 | -6/Factory | Fabricated Lrg. Storage Unit (x1) 16431 | -6/Factory | Fabricated Imp. VTOL Module? 16453 | -6/Factory | Fabricated Lrg. Storage Unit (x1) 16741 | -6/Factory | Build established: Machinist-Mutant 16755 | -6/Factory | Discovered exit to Lower Caves (range 15) 16762 | -6/Factory | Entered Lower Caves 16857 | -6/Lower Caves | Spotted EW-7YP(f) 16858 | -6/Lower Caves | Spotted WA-L67(f) 16859 | -6/Lower Caves | Encountered a Master Thief 16859 | -6/Lower Caves | Encountered a Master Thief 16864 | -6/Lower Caves | Flying Fortress v7 stolen by Master Thief 16967 | -6/Lower Caves | Encountered a Warlord checkpoint 16975 | -6/Lower Caves | Discovered new exit (range 16) 16981 | -6/Lower Caves | Identified exit to Lower Caves 16981 | -6/Lower Caves | Entered another Lower Caves area 16994 | -6/Lower Caves | Encountered a Warlord checkpoint 17077 | -6/Lower Caves | Discovered new exit (range 15) 17082 | -6/Lower Caves | Identified exit to Data Miner 17082 | -6/Lower Caves | Entered Data Miner 17082 | -6/Data Miner | Discovered new exit (range 6) 17089 | -6/Data Miner | Met Data Miner 17097 | -6/Data Miner | Learned location of Section 7 (-2) 17097 | -6/Data Miner | Acquired the access code to Warlord's prototype stash 17104 | -6/Data Miner | Received God Mode back door access code from Data Miner 17110 | -6/Data Miner | Identified exit to Proximity Caves 17111 | -6/Data Miner | Entered Proximity Caves 17157 | -5/Proximity Caves | Attracted the attention of an 0b10 checkpoint 17158 | -5/Proximity Caves | Escorted by Enhanced Grunt 17221 | -5/Proximity Caves | Discovered exit to Factory (range 15) 17226 | -5/Proximity Caves | Entered Factory 17226 | -5/Factory | Evolved 2 slots: Propulsion x1, Utility x1 17227 | -5/Factory | Build established: Mutant 17299 | -5/Factory | Fabricated Imp. VTOL Module (x1) 17598 | -5/Factory | Build established: Sprinter 17889 | -5/Factory | Discovered new exit (range 15) 17895 | -5/Factory | Fabricated Mic. Fission Core? 17897 | -5/Factory | Identified exit to Factory 17943 | -5/Factory | Local fabrication network quarantined 18126 | -5/Factory | First assault squad dispatched 18146 | -5/Factory | Incoming assault squad redirected 18147 | -5/Factory | Incoming assault squad redirected 18267 | -5/Factory | Discovered new exit (range 15) 18281 | -5/Factory | Identified exit to Upper Caves 18286 | -5/Factory | Lost 3 parts (2n1u) 18286 | -5/Factory | Entered Upper Caves 18295 | -5/Upper Caves | Learned Factory emergency access door positions 18302 | -5/Upper Caves | Spotted B-75 Beast 18314 | -5/Upper Caves | DAS Turret deployed 18319 | -5/Upper Caves | Allies destroyed B-75 Beast 18334 | -5/Upper Caves | Learned Factory stockpile data 18379 | -5/Upper Caves | Encountered a Warlord checkpoint 18380 | -5/Upper Caves | Learned Factory non-interactive machine intel 18380 | -5/Upper Caves | Discovered new exit (range 9) 18383 | -5/Upper Caves | Identified exit to Upper Caves 18383 | -5/Upper Caves | Entered another Upper Caves area 18400 | -5/Upper Caves | Attracted the attention of an 0b10 outpost 18400 | -5/Upper Caves | Discovered exit to Factory (range 9) 18435 | -5/Upper Caves | Attracted the attention of an 0b10 checkpoint 18489 | -5/Upper Caves | Discovered new exit (range 15) 18493 | -5/Upper Caves | Identified exit to Zhirov 18493 | -5/Upper Caves | Entered Zhirov 18493 | -5/Zhirov | Discovered new exit (range 3) 18499 | -5/Zhirov | Met Zhirov 18504 | -5/Zhirov | Learned location of Quarantine (-2) 18504 | -5/Zhirov | Learned location of Testing (-3) 18504 | -5/Zhirov | Learned location of Command (-1) 18511 | -5/Zhirov | Zhirov requested help retrieving the SGEMP Prototype 18517 | -5/Zhirov | Found Alien Artifact 18517 | -5/Zhirov | Identified Integrated Dissipator 18517 | -5/Zhirov | Installed Integrated Dissipator, increased core heat dissipation (+20) 18525 | -5/Zhirov | Found Alien Artifact 18732 | -5/Zhirov | Revealed the true nature of CR-A16's Pointy Stick 18831 | -5/Zhirov | Cloak Generator disabled 18831 | -5/Zhirov | Attacked by Zhirov 18833 | -5/Zhirov | Identified Transdimensional Reconstructor 18833 | -5/Zhirov | Warped through subspace 18855 | -5/Zhirov | Zhirov detonated his lab 18855 | -5/Zhirov | Core destroyed Last Messages --------------- 18818_ Zhirov uses his terminal. 18831_ Cloak Generator disabled. 18831_ Zhirov: "We're under attack!" 18832_ Held in stasis. Zhirov: What have you done! Without an active cloak all this specialized equipment will attract attention in no time! Perun, Svarog, deal with this and buy us some time to salvage what we can. [Achievement: Exposed] 18833_ Identified Transdimensional Reconstructor. 18833_ Warped through subspace. 18848_ Dropped Imp. Component Analysis Suite. 18855_ Mic. Fission Core destroyed. 18855_ Imp. VTOL Module destroyed. 18855_ Adv. Power Amplifier destroyed. 18855_ Enhanced Grunt destroyed. 18855_ Zhirov's Terminal disabled. 18855_ Machine disabled. 18855_ Zhirov's Terminal disabled. 18855_ Imp. Cesium-ion Thruster destroyed. 18855_ Machine disabled. Map ----- +----------------------------------------------------+ | | | | | ???????????????????????????????? | | ???????????????????????????????? | | ???????????????????????????????? | | ???????????????????????????????? | | ???????????????????????????????? | | ???????????????????????????????? | | ???????????????????????????????? | | ???????????????????????????????? | | ?????? ?????????????????????? | | ?????? ???????????????#""#? | | ?? #?? ???????????##""## | | ?"" ## ???###??##""""# | | ?" ## ##?#"""""" | | # " #?# """" | | #" ### | | | | | | # | | # | | # g = ### | | ? #?# "" " | | ??? #?#"""""" | | " # ??##""""# | | ???# @ ???##""## | | ???## ????#""#? | | ????## ????#""#? | | ????? ###??????? | | ???? ""#??????? | | ??? """#??????? | | ??? """#??????? | | ??" ""#??????? | | ?"" """#??????? | | ?""# """"#??????? | | ??"# X""""#??????? | | ???### #++########??????? | | ?????### """"#??????? | | ???????#"" "#??????? | | ???????#" " " " "[ "#??????? | | ???????# "%!"% " !" ="#??????? | | ???????# %"%%" " "=="#??????? | | ???????##################??????? | | ???????????????????????????????? | | ???????????????????????????????? | | ???????????????????????????????? | | ???????????????????????????????? | | ???????????????????????????????? | | ???????????????????????????????? | | ???????????????????????????????? | +----------------------------------------------------+ Best States ------------- Heat Dissipation 60 Energy Generation 43 Energy Capacity 1525 Matter Stores 300 Matter Capacity 300 Sight Range 16 Robot Scan Range 16 Terrain Scan Range 16 Terrain Scan Density 10 ECM Strength 3 Cloak Strength 2 Power Amplification 30 Additional Mass Support 12 Armor Coverage 400 Utility Shielding 90 Weapon Shielding 100 Evasion (%) 77 Recoil Reduction 4 Offensive Hacking 14 Item Schematics ----------------- Hcp. Storage Unit | -10/Materials | Hacked VTOL Module | -9/Materials | Scanalyzed Adv. Sensor Array | -8/Storage | Hacked Hvy. Beamcaster | -7/Zion | Free Riot Gun | -7/Zion | Free Battle Rifle | -7/Zion | Free Slug Cannon | -7/Zion | Free Enh. Flamer | -7/Zion | Free Imp. VTOL Module | -6/Factory | Hacked Lrg. Storage Unit | -6/Factory | Hacked Combat Drone Bay | -6/Data Miner | Free Lgt. Regenerative Plating | -6/Data Miner | Free Exp. Sensor Array | -6/Data Miner | Free Exp. Terrain Scanner | -6/Data Miner | Free Exp. Targeting Computer | -6/Data Miner | Free Cloaking Device | -6/Data Miner | Free Mni. Smartbomb Launcher | -6/Data Miner | Free Biomechanical Wings | -5/Factory | Scanalyzed Exp. Heat Sink | -5/Zhirov | Free Assault Drone Bay | -5/Zhirov | Free Exp. Optical Array | -5/Zhirov | Free Imp. Arc Thrower | -5/Zhirov | Free Robot Schematics ------------------ S-27 Virus | -6/Data Miner | Free G-50 Soldier | -6/Data Miner | Free I-36 Angel | -6/Data Miner | Free P-70 Sage | -6/Data Miner | Free Fabricated ------------ Adv. Sensor Array | x1 | -7/Factory Imp. VTOL Module | x1 | -6/Factory Lrg. Storage Unit | x1 | -6/Factory Imp. VTOL Module | x1 | -6/Factory Lrg. Storage Unit | x1 | -6/Factory Imp. VTOL Module | x1 | -5/Factory Mic. Fission Core | x2 | -5/Factory | Preloaded Alien Tech Used ----------------- Integrated Dissipator Transdimensional Reconstructor Achievements -------------- Exposed Challenges ------------ None Game ------ Seed BiocellSmallRay Manual? 0 Play Time 03:26:52 Cumulative 187.6 hours Start 2020.09.23 @ 13:25:53 End 2020.09.24 @ 19:18:37 Sessions 3 Manual Loads 0 Difficulty Rogue Special Mode None Game No. 210 Rogue 210 Adventurer 0 Explorer 0 Win Type - Total 2 Types 2/0/0/0/0/0/0/0/0 Lore% 61 Gallery% 74 Achievement% 56 Wizard Run 0 Options --------- ASCII 0 Keyboard 0 Movement Numpad Keybinds 0 Fullscreen 2 Font 24/Smallcaps Map View 76x50 Tactical HUD 1 Map Filters NONE Filters NONE Steam 1 RUN: b080dbbd-a64e-48e4-91ca-a7a7cc7bd1f0